bitfinex-derivatives/quotes_ETHF0:USTF0_20250217
["timestamp","ask_amount","ask_price","bid_price","bid_amount"]
[1739761124998,8.30728218,2668.7,2668.6,0.58781892]
[1739761125502,7.55796218,2668.7,2668.6,1.33715892]
[1739761125807,4.57266218,2668.7,2668.6,1.33715892]
[1739761127403,5.32198218,2668.7,2668.6,1.33715892]
[1739761133910,4.57266218,2668.7,2668.6,1.33715892]
[1739761134503,1.36486218,2668.7,2668.6,1.33715892]
[1739761141120,2.401,2668.8,2668.6,0.58781892]
[1739761141318,3.2078,2669.0,2668.9,0.74926]
[1739761141519,5.6088,2669.0,2668.9,0.74926]
[1739761142315,5.6088,2669.0,2668.9,1.33196]
[1739761143319,1.3704811,2669.1,2668.9,0.5827]
[1739761143526,0.00561892,2669.1,2669.0,0.74923]
[1739761145429,1.3704811,2669.1,2669.0,0.74923]
[1739761150332,0.00561892,2669.1,2669.0,0.74923]
[1739761152838,1.3704811,2669.1,2669.0,0.74923]
[1739761153342,1.9477811,2669.1,2669.0,0.74923]
[1739761154437,0.58291892,2669.1,2669.0,0.74923]
[1739761155537,0.00561892,2669.1,2669.0,0.74923]
[1739761162538,2.1196811,2669.1,2669.0,0.74923]
[1739761163952,1.3704811,2669.1,2668.7,0.5726]
[1739761164148,2.1197111,2669.1,2669.0,0.74923]
[1739761165348,2.1196811,2669.1,2669.0,0.74923]
[1739761169949,1.3704811,2669.1,2669.0,0.74923]
[1739761175555,1.9142811,2669.1,2669.0,0.74923]
[1739761180361,2.6634811,2669.1,2669.0,0.74923]
[1739761180958,1.9142811,2669.1,2669.0,0.74923]
[1739761182258,0.00561892,2669.1,2669.0,0.74923]
[1739761182663,0.00561892,2669.1,2669.0,1.32143]
[1739761185260,1.3704811,2669.1,2669.0,1.32143]
[1739761190967,1.3704811,2669.1,2669.0,0.74923]
[1739761195775,0.00561892,2669.1,2669.0,0.74923]
[1739761199674,0.75481892,2669.1,2669.0,0.74923]
[1739761199883,0.00561892,2669.1,2669.0,0.74923]
[1739761200282,1.3704811,2669.1,2669.0,0.74923]
[1739761200478,2.1196811,2669.1,2669.0,0.74923]
[1739761202976,1.3704811,2669.1,2668.8,0.5993]
[1739761203179,4.57266218,2668.9,2668.6,0.00561892]
[1739761203387,2.11418218,2668.7,2668.6,0.00561892]
[1739761203882,2.70368218,2668.7,2668.6,0.00561892]
[1739761207689,0.74943,2668.3,2668.2,0.5544]
[1739761207887,2.11429218,2668.3,2668.1,0.74947]
[1739761208185,1.6841,2668.2,2668.1,0.74947]
[1739761208382,1.6841,2668.2,2668.0,0.5442]
[1739761208584,1.36486218,2668.1,2668.0,1.29369]
[1739761209789,1.36486218,2668.1,2668.0,0.5442]
[1739761210088,0.74953,2668.0,2667.8,0.74955]
[1739761210279,3.76486218,2667.9,2667.8,0.74955]
[1739761210485,4.35816218,2667.9,2667.8,0.74955]
[1739761211090,2.9933,2667.9,2667.8,0.74955]
[1739761212185,4.35816218,2667.9,2667.8,0.74957]
[1739761212584,4.35816218,2667.9,2667.7,1.31958]
[1739761212585,5.10770218,2667.9,2667.7,1.31958]
[1739761212788,4.35816218,2667.9,2667.6,3.2078]
[1739761212989,0.74963,2667.6,2667.5,0.57]
[1739761214485,1.36486218,2667.7,2667.5,0.57]
[1739761215092,1.36486218,2667.7,2667.6,0.74962]
[1739761215397,1.1745,2667.8,2667.5,0.57]
[1739761215596,1.1745,2667.8,2667.7,0.7496]
[1739761215999,1.1745,2667.8,2667.6,0.5455]
[1739761216389,1.1745,2667.8,2667.7,0.7496]
[1739761216687,1.92409,2667.8,2667.6,1.29511]
[1739761216887,2.11446218,2667.7,2667.6,1.29511]
[1739761217096,1.36486218,2667.7,2667.6,1.29511]
[1739761218398,2.11446218,2667.7,2667.6,1.29511]
[1739761218893,1.36486218,2667.7,2667.6,1.29511]
[1739761219901,1.1745,2667.8,2667.6,0.5455]
[1739761220101,1.1745,2667.8,2667.7,0.7496]
[1739761220296,5.10771218,2667.9,2667.6,0.5455]
[1739761220502,4.35816218,2667.9,2667.8,0.74957]
[1739761220699,4.51440218,2667.9,2667.8,0.74957]
[1739761221001,3.76486218,2667.9,2667.8,1.30907]
[1739761221203,3.808,2668.1,2667.8,1.30907]
[1739761221204,3.2078,2668.1,2668.0,0.74951]
[1739761221398,5.6078,2668.1,2667.8,1.30905]
[1739761221697,0.74954,2667.9,2667.8,1.30906]
[1739761221903,2.11439218,2668.0,2667.8,1.30906]
[1739761222203,1.36486218,2668.0,2667.8,1.30906]
[1739761222504,0.74954,2667.9,2667.8,0.5595]
[1739761223010,0.7496,2667.7,2667.6,0.74961]
[1739761223301,4.51446218,2667.7,2667.6,0.74961]
[1739761223501,4.51446218,2667.7,2667.4,1.1515]
[1739761223698,4.51446218,2667.7,2667.5,0.74965]
[1739761223896,0.74963,2667.6,2667.5,0.74965]
[1739761224090,1.33853,2667.6,2667.5,0.74965]
[1739761224801,1.91013,2667.6,2667.5,0.74965]
[1739761224996,1.1605,2667.6,2667.5,0.74965]
[1739761225198,3.76486218,2667.7,2667.4,1.1515]
[1739761225400,2.11451218,2667.5,2667.4,1.1515]
[1739761225603,2.11451218,2667.5,2667.4,1.90118]
[1739761226306,1.36486218,2667.5,2667.3,3.2078]
[1739761226496,0.74968,2667.4,2667.3,3.2078]
[1739761226700,0.74974,2667.2,2667.1,0.5861]
[1739761226904,4.51460218,2667.2,2667.1,0.5861]
[1739761228401,4.64910218,2667.2,2667.1,0.5861]
[1739761228602,3.28424,2667.2,2667.1,0.5861]
[1739761229009,2.5345,2667.2,2666.9,0.74981]
[1739761229199,2.49168,2667.1,2666.9,0.74981]
[1739761230807,1.7419,2667.1,2666.9,0.74981]
[1739761231105,0.74979,2667.0,2666.9,0.74981]
[1739761231406,1.7419,2667.1,2666.8,0.5794]
[1739761231602,2.49168,2667.1,2666.9,0.7498]
[1739761231807,0.74979,2667.0,2666.9,0.7498]
[1739761232007,2.49169,2667.1,2666.9,0.7498]
[1739761232304,0.2999,2667.0,2666.9,0.7498]
[1739761232507,1.04969,2667.0,2666.9,0.7498]
[1739761232902,0.2999,2667.0,2666.9,0.7498]
[1739761233104,1.04969,2667.0,2666.9,0.7498]
[1739761233309,0.74982,2666.9,2666.8,0.5794]
[1739761233510,0.2999,2667.0,2666.9,0.74982]
[1739761234509,0.2999,2667.0,2666.9,7.85712]
[1739761234710,1.9341,2667.2,2667.1,0.74977]
[1739761235008,0.4344,2667.2,2667.1,3.95757]
[1739761235405,1.431,2667.4,2667.1,3.2078]
[1739761235613,1.431,2667.4,2667.3,0.74971]
[1739761235806,1.431,2667.4,2667.3,0.59311]
[1739761236007,2.4,2667.5,2667.4,0.74968]
[1739761236304,1.4994,2667.6,2667.5,0.74965]
[1739761236504,1.4994,2667.6,2667.5,1.91195]
[1739761236706,1.7992,2667.6,2667.5,1.91195]
[1739761237219,0.2998,2667.6,2667.5,1.91195]
[1739761238818,0.2998,2667.6,2667.5,2.51115]
[1739761240216,0.2998,2667.6,2667.4,3.2078]
[1739761240217,1.04944,2667.6,2667.4,3.95747]
[1739761240419,0.2998,2667.6,2667.4,3.2078]
[1739761240716,1.29485,2667.5,2667.4,3.2078]
[1739761240914,0.5452,2667.5,2667.4,3.95748]
[1739761241116,0.8604,2667.6,2667.5,0.74965]
[1739761241421,0.2998,2667.6,2667.5,0.74965]
[1739761249426,0.2998,2667.6,2667.5,1.29905]
[1739761251027,2.93601892,2667.7,2667.5,1.29905]
[1739761251225,2.4,2668.2,2668.1,0.74948]
[1739761251620,0.7494,2668.4,2667.9,3.7929]
[1739761251927,0.74944,2668.3,2668.1,0.74948]
[1739761252430,0.1986,2668.2,2668.1,0.74948]
[1739761253330,0.1986,2668.2,2668.1,1.32148]
[1739761256933,0.1986,2668.2,2668.1,0.74948]
[1739761257329,0.94806,2668.2,2668.0,0.74949]
[1739761257534,0.5679,2668.1,2668.0,0.74949]
[1739761257834,0.5679,2668.1,2667.9,3.21341892]
[1739761258041,1.1481,2668.0,2667.9,0.00561892]
[1739761258236,1.89761,2668.0,2667.9,0.00561892]
[1739761258928,1.1481,2668.0,2667.9,0.75515892]
[1739761259135,1.1481,2668.0,2667.9,0.00561892]
[1739761259634,1.1481,2668.0,2667.9,0.75515892]
[1739761260631,0.5679,2668.1,2668.0,0.74951]
[1739761261032,0.5679,2668.1,2668.0,1.33511]
[1739761261737,0.1986,2668.2,2668.1,0.74948]
[1739761261939,0.1986,2668.2,2668.1,1.30278]
[1739761262324,0.1986,2668.2,2668.1,0.74948]
[1739761263745,0.7981,2668.2,2667.9,3.21341892]
[1739761264036,0.7495,2668.1,2667.9,3.21341892]
[1739761264533,0.595,2668.0,2667.9,3.96295892]
[1739761264733,2.995,2668.0,2667.9,3.21341892]
[1739761264934,2.995,2668.0,2667.9,3.96295892]
[1739761265134,3.74451,2668.0,2667.9,3.21341892]
[1739761265339,3.74451,2668.0,2667.9,0.00561892]
[1739761266936,2.995,2668.0,2667.9,0.00561892]
[1739761267132,2.995,2668.0,2667.9,0.75515892]
[1739761267540,3.74451,2668.0,2667.9,0.00561892]
[1739761268339,2.995,2668.0,2667.9,0.00561892]
[1739761268533,3.74451,2668.0,2667.9,0.00561892]
[1739761269442,6.95231,2668.0,2667.9,0.00561892]
[1739761269643,0.74967,2667.5,2667.3,3.95749]
[1739761269843,3.5125,2667.4,2667.3,3.95749]
[1739761270751,3.7113,2667.4,2667.3,3.95749]
[1739761271832,4.46098,2667.4,2667.3,3.2078]
[1739761272034,3.7113,2667.4,2667.3,3.95751]
[1739761272744,3.7113,2667.4,2667.3,3.2078]
[1739761272745,8.01271582,2667.4,2667.3,3.2078]
[1739761273237,0.74972,2667.3,2667.1,0.74974]
[1739761273635,0.74972,2667.3,2667.0,3.2078]
[1739761273840,0.74972,2667.3,2667.1,0.74975]
[1739761274142,0.74972,2667.3,2667.0,3.2078]
[1739761274346,0.74972,2667.3,2667.2,0.74974]
[1739761274547,7.26303582,2667.4,2667.2,0.74974]
[1739761274844,0.74971,2667.3,2667.1,0.74977]
[1739761275446,0.74972,2667.3,2667.0,3.2078]
[1739761275746,0.74972,2667.3,2667.1,0.74977]
[1739761275948,0.74972,2667.3,2667.2,0.74974]
[1739761276446,8.01274582,2667.4,2667.2,0.74974]
[1739761276648,0.74971,2667.3,2667.2,0.74974]
[1739761276847,4.86303582,2667.4,2667.3,0.74971]
[1739761277148,4.3024,2667.4,2667.3,0.74971]
[1739761277542,5.05211,2667.4,2667.2,0.74972]
[1739761277743,5.0521,2667.4,2667.2,0.74972]
[1739761277943,0.74972,2667.3,2667.2,0.74972]
[1739761278144,0.74971,2667.3,2667.2,0.74972]
[1739761278646,8.01272582,2667.4,2667.3,0.74971]
[1739761278943,7.26303582,2667.4,2667.3,0.74971]
[1739761279447,8.01271582,2667.4,2667.3,0.74971]
[1739761279647,7.26303582,2667.4,2667.0,3.2078]
[1739761280444,0.74972,2667.3,2667.2,0.74972]
[1739761282138,2.24932,2667.3,2667.2,0.74972]
[1739761283148,1.4996,2667.3,2667.2,0.74972]
[1739761283351,2.24931,2667.3,2667.2,0.74972]
[1739761284745,1.6985,2667.3,2667.2,0.74972]
[1739761284947,4.0985,2667.3,2667.2,0.74972]
[1739761286355,4.84821,2667.3,2667.2,0.74972]
[1739761286853,4.0985,2667.3,2667.2,0.74972]
[1739761289247,0.00561892,2668.5,2667.2,11.36063582]
[1739761289443,0.5697,2669.0,2668.2,3.2078]
[1739761289644,0.5697,2669.0,2668.7,3.2078]
[1739761289847,0.5697,2669.0,2668.9,0.74926]
[1739761290549,0.8922,2669.2,2669.0,0.74922]
[1739761290749,0.89781892,2669.2,2669.0,0.74922]
[1739761290951,0.89781892,2669.2,2668.7,3.21341892]
[1739761291856,0.89781892,2669.2,2669.0,0.74921]
[1739761292249,0.00561892,2669.2,2669.0,0.74921]
[1739761292749,0.00561892,2669.2,2669.1,0.7492]
[1739761293155,0.00561892,2669.2,2668.7,3.21341892]
[1739761293455,0.00561892,2669.2,2669.0,0.74922]
[1739761294144,0.00561892,2669.2,2668.7,3.21341892]
[1739761294348,0.00561892,2669.2,2669.1,0.7492]
[1739761295355,0.00561892,2669.2,2668.7,3.21341892]
[1739761295557,0.00561892,2669.2,2669.0,0.74922]
[1739761295954,0.00561892,2669.2,2669.1,0.7492]
[1739761296351,40.80561892,2669.2,2669.1,0.7492]
[1739761297064,40.80561892,2669.2,2668.7,3.21341892]
[1739761297359,44.01341892,2669.2,2669.0,0.74923]
[1739761298160,44.01341892,2669.2,2668.7,3.21341892]
[1739761298362,44.01341892,2669.2,2669.1,0.7492]
[1739761298653,40.80561892,2669.2,2669.1,0.7492]
[1739761298848,0.00561892,2669.2,2669.1,0.7492]
[1739761299054,0.00561892,2669.2,2669.1,3.70983582]
[1739761299657,0.00561892,2669.2,2669.1,4.26603582]
[1739761302665,0.00561892,2669.2,2669.1,0.7492]
[1739761306261,0.00561892,2669.2,2669.1,3.70983582]
[1739761306463,0.00561892,2669.2,2669.1,4.30813582]
[1739761314176,0.00561892,2669.2,2669.1,1.3475]
[1739761315879,0.89821892,2669.2,2669.1,1.3475]
[1739761317069,0.89821892,2669.2,2669.1,0.7492]
[1739761317772,6.51701892,2669.2,2668.7,0.00561892]
[1739761317967,1.33681,2669.1,2668.9,0.74925]
[1739761318867,1.33681,2669.1,2668.9,0.74924]
[1739761319468,0.5876,2669.1,2668.7,0.00561892]
[1739761319761,0.74929,2668.8,2668.7,0.00561892]
[1739761319963,3.16029,2668.8,2668.7,0.00561892]
[1739761321574,0.74936,2668.6,2668.4,0.74939]
[1739761321972,1.1553,2668.7,2668.0,3.2078]
[1739761321973,0.74937,2668.5,2668.0,3.2078]
[1739761322272,0.74937,2668.5,2668.2,0.74944]
[1739761322467,0.74944,2668.3,2667.7,20.781]
[1739761322678,1.30876,2668.2,2668.0,0.7495]
[1739761322877,0.5593,2668.2,2667.6,6.16843582]
[1739761323081,0.5741,2668.1,2668.0,0.74948]
[1739761323870,0.5741,2668.1,2667.9,0.74952]
[1739761324174,1.32359,2668.1,2667.9,0.74952]
[1739761324372,0.5741,2668.1,2668.0,0.74951]
[1739761324779,1.1385,2668.1,2668.0,0.74951]
[1739761324972,1.1385,2668.1,2667.6,6.16843582]
[1739761325374,1.1385,2668.1,2667.8,0.74956]
[1739761325575,1.888,2668.1,2667.9,0.74954]
[1739761325778,1.888,2668.1,2667.6,6.16843582]
[1739761325779,2.411,2668.0,2667.6,6.16843582]
[1739761325977,2.411,2668.0,2667.9,0.74954]
[1739761326774,0.5644,2668.1,2668.0,0.74951]
[1739761327072,0.5644,2668.1,2667.9,2.81674582]
[1739761327273,0.5644,2668.1,2668.0,0.74951]
[1739761332598,1.1113,2668.1,2668.0,0.74951]
[1739761333996,2.408,2668.5,2668.4,0.7494]
[1739761334393,1.1193,2668.7,2668.3,3.71006582]
[1739761334594,1.1193,2668.7,2668.6,0.74934]
[1739761336591,1.1193,2668.7,2668.3,2.96063582]
[1739761336791,1.1193,2668.7,2668.6,0.74934]
[1739761338501,1.1193,2668.7,2668.3,2.96063582]
[1739761338694,1.1193,2668.7,2668.2,3.7695]
[1739761338695,1.1193,2668.7,2668.2,3.2078]
[1739761338891,3.2078,2668.5,2667.9,3.2078]
[1739761339198,0.74949,2668.1,2667.9,3.2078]
[1739761339402,2.407,2668.4,2667.9,3.2078]
[1739761339403,1.157,2668.0,2667.9,3.2078]
[1739761339604,1.90651,2668.0,2667.9,3.2078]
[1739761340391,1.90651,2668.0,2667.9,3.95734]
[1739761340392,1.157,2668.0,2667.9,3.95734]
[1739761340695,1.90653,2668.0,2667.8,0.74955]
[1739761340903,1.157,2668.0,2667.6,3.2078]
[1739761341398,1.157,2668.0,2667.9,0.74954]
[1739761341599,3.564,2668.0,2667.9,0.74954]
[1739761342201,4.31353,2668.0,2667.7,0.74958]
[1739761342401,4.31353,2668.0,2667.8,0.74956]
[1739761343209,3.564,2668.0,2667.9,0.74954]
[1739761343907,3.564,2668.0,2667.8,0.74955]
[1739761344203,3.564,2668.0,2667.6,3.2078]
[1739761344505,3.564,2668.0,2667.9,0.74954]
[1739761345106,3.564,2668.0,2667.6,0.7496]
[1739761345306,0.74957,2667.8,2667.6,0.7496]
[1739761345605,0.5692,2667.9,2667.6,0.7496]
[1739761345803,0.74957,2667.8,2667.4,4.10053582]
[1739761346106,0.7496,2667.8,2667.5,0.74964]
[1739761346298,3.777,2667.9,2667.3,3.2078]
[1739761346503,3.777,2667.9,2667.3,0.7497]
[1739761346799,0.74966,2667.5,2667.3,0.7497]
[1739761346999,0.5862,2667.4,2667.3,0.7497]
[1739761348811,0.5862,2667.4,2667.3,0.74971]
[1739761349509,0.5862,2667.4,2667.0,3.7833]
[1739761349908,0.5862,2667.4,2667.3,0.74971]
[1739761350112,1.33588,2667.4,2667.3,0.74971]
[1739761350303,0.5862,2667.4,2667.3,0.74971]
[1739761350503,1.33589,2667.4,2667.2,0.74972]
[1739761350808,1.33589,2667.4,2667.0,3.7833]
[1739761351308,0.5862,2667.4,2667.0,3.2078]
[1739761351613,1.33589,2667.4,2667.2,0.74972]
[1739761351804,1.89319,2667.4,2667.2,0.74972]
[1739761352113,1.89319,2667.4,2667.0,3.2078]
[1739761352409,0.74972,2667.3,2667.0,3.2078]
[1739761352613,1.1435,2667.4,2667.0,3.2078]
[1739761352806,1.89321,2667.4,2667.0,3.2078]
[1739761353009,1.89321,2667.4,2667.2,0.74973]
[1739761353715,1.1435,2667.4,2667.2,0.74973]
[1739761354012,0.74971,2667.3,2667.2,0.74973]
[1739761354409,1.1435,2667.4,2667.0,3.2078]
[1739761354612,0.74975,2667.2,2667.0,3.95758]
[1739761354806,0.74975,2667.2,2667.0,3.2078]
[1739761355012,0.5489,2667.1,2667.0,3.95758]
[1739761357713,2.9539,2667.1,2667.0,3.95758]
[1739761358415,2.406,2667.3,2667.2,0.74974]
[1739761359415,0.74974,2667.2,2667.1,0.74976]
[1739761359616,2.9668,2667.3,2667.2,0.74974]
[1739761360011,3.71651,2667.3,2667.2,0.74974]
[1739761360518,3.71651,2667.3,2667.0,3.2078]
[1739761360815,0.74977,2667.1,2667.0,3.2078]
[1739761362018,0.74977,2667.1,2667.0,3.95759]
[1739761362219,0.74977,2667.1,2667.0,3.2078]
[1739761362720,0.74977,2667.1,2667.0,3.95759]
[1739761362920,0.74977,2667.1,2667.0,3.2078]
[1739761363123,0.74977,2667.1,2667.0,3.95759]
[1739761363421,0.74977,2667.1,2667.0,3.2078]
[1739761363617,0.74984,2666.9,2666.7,3.95766]
[1739761363921,3.5407,2666.8,2666.7,3.95768]
[1739761364119,3.5407,2666.8,2666.7,3.2078]
[1739761364425,4.29055,2666.8,2666.7,3.2078]
[1739761366309,3.5407,2666.8,2666.2,6.99060648]
[1739761366514,3.5407,2666.8,2665.6,3.2078]
[1739761366515,6.16843582,2666.3,2665.6,3.2078]
[1739761366712,0.75012,2665.9,2665.6,3.2078]
[1739761366915,2.418,2665.8,2665.7,0.75016]
[1739761367316,2.418,2665.8,2665.6,3.2078]
[1739761367515,2.418,2665.8,2665.7,0.75016]
[1739761367729,2.418,2665.8,2665.6,3.95797]
[1739761368022,2.418,2665.8,2665.7,0.75016]
[1739761368215,2.418,2665.8,2665.3,3.2078]
[1739761368415,2.418,2665.8,2665.3,4.8721]
[1739761368824,2.418,2665.8,2665.6,0.75016]
[1739761369119,2.418,2665.8,2665.3,4.8721]
[1739761369327,2.418,2665.8,2665.4,0.75023]
[1739761369526,2.418,2665.8,2665.3,4.8721]
[1739761369817,2.418,2665.8,2665.4,0.75024]
[1739761370022,2.418,2665.8,2665.3,4.8721]
[1739761370223,0.75019,2665.6,2665.3,3.2078]
[1739761370420,1.88858,2665.7,2665.3,3.2078]
[1739761370623,1.1384,2665.7,2665.3,3.2078]
[1739761370824,1.7212,2665.7,2665.3,3.2078]
[1739761371024,2.47136,2665.7,2665.3,3.95807]
[1739761371226,0.75021,2665.6,2665.3,3.2078]
[1739761371424,2.47137,2665.7,2665.3,3.95807]
[1739761371624,1.7212,2665.7,2665.3,3.2078]
[1739761371824,2.47137,2665.7,2665.3,3.2078]
[1739761372029,1.7212,2665.7,2665.3,3.2078]
[1739761372223,0.75021,2665.6,2665.3,3.2078]
[1739761372419,1.7212,2665.7,2665.3,3.2078]
[1739761372625,0.7502,2665.6,2665.3,3.2078]
[1739761372820,0.75019,2665.6,2665.3,3.2078]
[1739761373521,0.75022,2665.5,2665.3,3.2078]
[1739761373829,2.419,2665.4,2665.3,3.95807]
[1739761374325,2.419,2665.4,2665.3,3.2078]
[1739761374720,2.419,2665.4,2665.3,3.95807]
[1739761374929,2.419,2665.4,2665.3,3.2078]
[1739761375520,2.419,2665.4,2665.3,3.95807]
[1739761375722,1.1384,2665.7,2665.6,0.75019]
[1739761375917,3.5554,2665.7,2665.3,3.2078]
[1739761376228,3.5554,2665.7,2665.4,0.75023]
[1739761376418,0.5792,2665.7,2665.6,0.75019]
[1739761376622,0.5698,2666.1,2665.6,0.75019]
[1739761376623,0.5968,2666.0,2665.8,0.75012]
[1739761376820,2.418,2665.9,2665.8,0.75012]
[1739761377918,0.00561892,2666.2,2665.7,2.96063582]
[1739761378123,2.42261892,2666.2,2666.1,0.75005]
[1739761378428,2.42261892,2666.2,2665.9,3.2078]
[1739761378724,3.17264892,2666.2,2665.9,3.95788]
[1739761378927,2.42261892,2666.2,2665.9,3.2078]
[1739761379128,3.17264892,2666.2,2665.9,3.95788]
[1739761379520,2.42261892,2666.2,2665.9,3.2078]
[1739761379727,3.17264892,2666.2,2665.9,3.95788]
[1739761379923,2.42261892,2666.2,2665.9,3.2078]
[1739761380119,0.75006,2666.1,2665.9,3.2078]
[1739761380330,0.5458,2666.0,2665.9,3.9579]
[1739761380628,0.5458,2666.0,2665.9,3.2078]
[1739761381731,0.5458,2666.0,2665.9,3.9579]
[1739761383629,2.42261892,2666.2,2666.1,0.75005]
[1739761386422,2.42261892,2666.2,2666.0,1.86466]
[1739761386625,2.42261892,2666.2,2665.9,3.2078]
[1739761386831,1.32626,2666.1,2665.9,3.2078]
[1739761387120,0.75007,2666.0,2665.9,3.2078]
[1739761387324,1.34237,2666.0,2665.9,3.2078]
[1739761387725,0.5923,2666.0,2665.9,3.2078]
[1739761388530,0.5923,2666.0,2665.9,3.9579]
[1739761388831,1.34237,2666.0,2665.9,3.2078]
[1739761389030,0.5923,2666.0,2665.9,3.9579]
[1739761389828,1.34237,2666.0,2665.9,3.2078]
[1739761391032,0.5923,2666.0,2665.9,3.9579]
[1739761392130,1.34237,2666.0,2665.9,3.9579]
[1739761393044,1.34237,2666.0,2665.9,3.2078]
[1739761393337,1.34237,2666.0,2665.9,3.9579]
[1739761394433,0.5923,2666.0,2665.9,3.9579]
[1739761395546,1.34237,2666.0,2665.9,3.9579]
[1739761395730,0.5923,2666.0,2665.9,3.9579]
[1739761396246,0.58909833,2666.0,2665.9,3.9579]
[1739761403431,0.58909833,2666.0,2665.9,3.2078]
[1739761403846,1.33916833,2666.0,2665.9,3.9579]
[1739761404539,0.58909833,2666.0,2665.9,3.9579]
[1739761405343,0.58909833,2666.0,2665.9,3.2078]
[1739761405548,1.33916833,2666.0,2665.9,3.9579]
[1739761405743,0.58909833,2666.0,2665.9,3.9579]
[1739761406246,1.33916833,2666.0,2665.9,3.9579]
[1739761406639,0.58909833,2666.0,2665.8,0.75012]
[1739761406836,0.5651,2665.9,2665.6,3.2078]
[1739761407141,0.75016,2665.7,2665.6,3.2078]
[1739761407745,3.73605,2665.8,2665.7,0.75016]
[1739761407944,2.9859,2665.8,2665.7,0.75016]
[1739761408849,0.5809,2665.8,2665.7,0.75016]
[1739761410246,0.5809,2665.8,2665.3,3.2078]
[1739761410446,1.33105,2665.8,2665.6,0.75019]
[1739761411244,0.5809,2665.8,2665.7,0.75016]
[1739761413138,2.99909833,2666.0,2665.6,3.2078]
[1739761413343,2.41,2666.0,2665.9,0.7501]
[1739761414348,2.41,2666.0,2665.8,0.75013]
[1739761414543,2.41,2666.0,2665.7,1.1414]
[1739761414746,2.41,2666.0,2665.9,0.7501]
[1739761415050,3.1601,2666.0,2665.7,0.75014]
[1739761415247,3.1601,2666.0,2665.8,0.75012]
[1739761416041,2.41,2666.0,2665.6,3.2078]
[1739761416247,3.16007,2666.0,2665.8,0.75011]
[1739761416446,2.41,2666.0,2665.9,0.7501]
[1739761417049,2.41,2666.0,2665.6,3.2078]
[1739761417253,3.16009,2666.0,2665.8,0.75012]
[1739761417647,2.41,2666.0,2665.6,3.2078]
[1739761418046,0.75011,2665.9,2665.7,0.75013]
[1739761418454,0.5529,2665.8,2665.7,0.75013]
[1739761421656,1.30303,2665.8,2665.7,0.75013]
[1739761421853,0.5529,2665.8,2665.7,0.75013]
[1739761423557,2.41,2666.0,2665.6,3.2078]
[1739761423853,2.9867,2666.0,2665.8,0.75011]
[1739761424056,2.412,2665.9,2665.6,5.08325]
[1739761424252,2.412,2665.9,2665.7,0.5428]
[1739761424451,2.412,2665.9,2665.8,0.75013]
[1739761424952,2.412,2665.9,2665.7,0.5428]
[1739761425158,3.16211,2665.9,2665.6,3.2078]
[1739761425358,0.75014,2665.8,2665.6,3.95797]
[1739761425563,2.412,2665.9,2665.6,3.2078]
[1739761425754,3.1621,2665.9,2665.8,0.75013]
[1739761426452,2.412,2665.9,2665.8,0.75013]
[1739761426651,3.1621,2665.9,2665.8,0.75013]
[1739761426847,0.75014,2665.8,2665.6,3.95797]
[1739761427062,0.75014,2665.8,2665.7,0.75016]
[1739761427260,2.412,2665.9,2665.7,0.75016]
[1739761427460,3.16211,2665.9,2665.7,0.75016]
[1739761429260,2.412,2665.9,2665.7,0.75016]
[1739761429660,3.16211,2665.9,2665.7,0.75016]
[1739761430065,3.16211,2665.9,2665.6,3.2078]
[1739761430365,2.412,2665.9,2665.8,0.75013]
[1739761432169,3.1621,2665.9,2665.8,0.75013]
[1739761432757,0.75015,2665.8,2665.7,0.75016]
[1739761433259,3.16213,2665.9,2665.7,0.75016]
[1739761433762,2.412,2665.9,2665.7,0.75016]
[1739761433963,3.16212,2665.9,2665.7,0.75016]
[1739761434364,2.412,2665.9,2665.8,0.75013]
[1739761434863,0.75014,2665.8,2665.7,0.75014]
[1739761435058,3.16211,2665.9,2665.8,0.75013]
[1739761435258,2.412,2665.9,2665.8,0.75013]
[1739761435557,3.1571,2665.9,2665.8,0.75013]
[1739761436265,0.75014,2665.8,2665.6,3.2078]
[1739761436954,0.75014,2665.8,2664.9,3.93919723]
[1739761436955,1.87548,2665.6,2664.7,11.67304766]
[1739761437161,2.96063582,2664.9,2664.7,11.67304766]
[1739761437356,4.34601,2664.8,2664.7,11.67304766]
[1739761437765,4.93311,2664.8,2664.7,11.67304766]
[1739761438062,4.93311,2664.8,2664.6,3.2078]
[1739761438363,2.413,2665.0,2664.6,3.2078]
[1739761438553,2.9972,2665.1,2664.8,0.7504]
[1739761439061,2.9972,2665.1,2664.7,1.7635]
[1739761439358,2.9972,2665.1,2664.7,2.51394]
[1739761439762,2.9972,2665.1,2664.7,1.7635]
[1739761439962,3.74753,2665.1,2664.8,0.7504]
[1739761440159,3.74754,2665.1,2664.7,2.51393]
[1739761440364,0.75037,2665.0,2664.7,1.7635]
[1739761440562,2.9972,2665.1,2664.7,1.1633]
[1739761440768,0.75038,2665.0,2664.7,1.1633]
[1739761440968,0.75039,2664.9,2664.7,1.1633]
[1739761441366,2.9972,2665.1,2664.7,1.1633]
[1739761441667,0.75038,2665.0,2664.7,1.91373]
[1739761441966,0.75039,2664.9,2664.7,1.1633]
[1739761442166,0.75037,2665.0,2664.7,1.1633]
[1739761442668,0.75039,2664.9,2664.7,1.1633]
[1739761442860,2.9972,2665.1,2664.6,3.2078]
[1739761443056,1.31111,2664.8,2664.6,3.2078]
[1739761443368,0.5607,2664.8,2664.6,3.95826]
[1739761443563,0.5607,2664.8,2664.6,3.2078]
[1739761443967,0.5607,2664.8,2664.6,3.95826]
[1739761444161,1.33455,2665.1,2664.6,3.2078]
[1739761444361,2.423,2665.0,2664.7,0.5738]